[Event "Cracovia Festival-A 2023"]
[Site "Krakow"]
[Date "2023.12.27"]
[Round "1.1"]
[White "Puranik, Abhimanyu"]
[Black "Piekielny, Pawel"]
[Result "1-0"]
[ECO "C02"]
[WhiteElo "2627"]
[BlackElo "2250"]
[Annotator "TA"]
[PlyCount "87"]
[EventDate "2023.12.24"]
[EventType "swiss"]
[EventCountry "POL"]
[SourceTitle "playchess.com"]
[Source "ChessBase"]
[SourceQuality "1"]
[TimeControl "40/5400+30:1800+30"]

{[%evp 17,86,9,47,55,64,31,52,41,74,36,47,45,49,41,80,78,78,62,78,30,78,78,78,78,79,78,78,78,78,78,75,75,78,78,85,78,78,78,86,85,90,81,84,75,79,86,90,74,71,75,91,59,636,659,699,716,680,620,29987,29988,29988,29989,29993,29994,29994,29995,29995,29996,29998,29999,29999]} 1. e4 {[%emt 0:00:08]} e6 {[%emt 0:00:16]} 2. d4 {[%emt 0:00:05]} d5 {[%emt 0:00:05]} 3. e5 {[%emt 0:00:03]} c5 {[%emt 0:00:06]} 4. c3 {[%emt 0:00:03]} Nc6 {[%emt 0:00:15]} 5. Nf3 {[%emt 0:00:03]} Bd7 {[%emt 0:00:28]} 6. Be2 {[%emt 0:00:24]} Nge7 {[%emt 0:00:38]} 7. O-O {[%emt 0:00:23]} cxd4 {[%emt 0:01:17]} 8. cxd4 {[%emt 0:00:05]} Nf5 {[%emt 0:02:54]} 9. Nc3 {[%emt 0:00:05]} Be7 {[%emt 0:00:05]} 10. Bd3 {[%emt 0:04:34] C02: French: Advance Variation.} g6 {[%emt 0:08:55]} ({Less strong is} 10... Ncxd4 11. Nxd4 Nxd4 12. Qg4 $16) 11. Ne2 $5 {[%emt 0:17:48][%mdl 4] [#] Exploring less charted territory.} Qb6 $146 {[%emt 0:10:20][%cal Rc6d4]} ({Predecessor:} 11... O-O 12. Bxf5 exf5 13. Bh6 Re8 14. Qd2 Be6 15. h4 f6 16. Nf4 Qd7 17. Nd3 b6 {1-0 Darini,P (2401)-Nikookar,M (2184) Tehran zt 3.1 2023 (9)}) 12. Bxf5 {[%emt 0:02:07] White is slightly better.} exf5 {[%emt 0:03:44]} 13. Bg5 {[%emt 0:02:16]} Bxg5 {[%emt 0:05:58]} 14. Nxg5 {[%emt 0:01:21]} h6 {[%emt 0:02:42]} 15. Nf3 {[%emt 0:00:12]} O-O {[%emt 0:00:48]} 16. Qd2 {[%emt 0:01:12]} Kg7 {[%emt 0:00:36]} 17. Rac1 {[%emt 0:01:05]} Ne7 {[%emt 0:07:02]} 18. Rc5 {[%emt 0:05:34]} (18. Nf4 $16) 18... Rfc8 {[%emt 0:00:10] Black is weak on the dark squares} (18... Bb5 $1 $11) 19. Rfc1 $16 {[%emt 0:00:30]} Qd8 {[%emt 0:03:19]} 20. h4 {[%emt 0:09:18]} b6 {[%emt 0:03:01]} 21. R5c3 {[%emt 0:00:05]} Rxc3 {[%emt 0:02:09]} 22. Rxc3 {[%emt 0:00:06]} Rc8 {[%emt 0:02:08]} 23. g3 {[%emt 0:00:05]} Rxc3 {[%emt 0:03:31]} 24. Qxc3 {[%emt 0:00:06]} Be6 {[%emt 0:01:51]} 25. Nf4 {[%emt 0:01:01]} Qd7 {[%emt 0:03:05]} 26. Kg2 {[%emt 0:00:51] White has more active pieces.} Nc6 {[%emt 0:10:24]} 27. Ne1 {[%emt 0:02:22][%cal Bf3e1,Be1c2,Bc2a3,Ba3b1,Bb1c3][%mdl 32]} Nd8 {[%emt 0:03:43]} 28. Nc2 {[%emt 0:02:37]} (28. Qa3 {is interesting.} Nc6 29. Nc2 a5 30. Kg1) 28... Nc6 {[%emt 0:01:44]} 29. b3 {[%emt 0:01:39]} Ne7 {[%emt 0:02:19]} 30. Qd3 {[%emt 0:11:01]} Qc7 {[%emt 0:02:07]} 31. Na3 {[%emt 0:01:02]} Bd7 {[%emt 0:04:08]} 32. Nb1 {[%emt 0:00:42]} Qc1 {[%emt 0:03:44]} 33. Nc3 {[%emt 0:00:50]} Qe1 {[%emt 0:06:50]} 34. Nce2 {[%emt 0:00:15] Excellent horsemanship.} (34. Nfxd5 $2 {loses.} Nxd5 35. Nxd5 Bc6 $19) 34... Qa1 $2 {[%emt 0:02:26][%mdl 8192] Loses the game.} (34... Kf8 $14) 35. Qa6 $18 {[%emt 0:00:57]} g5 {[%emt 0:02:07]} 36. Nh5+ {[%emt 0:05:12]} Kg6 {[%emt 0:00:05]} 37. Nf6 {[%emt 0:00:45]} Be6 {[%emt 0:02:19]} 38. hxg5 {[%emt 0:03:40] White mates.} hxg5 {[%emt 0:00:12] [#]} 39. Nf4+ $1 {[%emt 0:04:11][%mdl 576] Clearance} gxf4 {[%emt 0:00:16] [#]} (39... Kg7 40. Nxe6+) 40. Qe2 $1 {[%emt 0:00:00]} Kg7 {[%emt 0:00:00]} 41. Qh5 {[%emt 0:00:07]} f3+ {[%emt 0:02:45]} 42. Kh2 $1 {[%emt 0:00:53]} Bd7 {[%emt 0:01:56]} 43. Qh7+ {[%emt 0:00:05]} Kf8 {[%emt 0:00:03]} 44. Qh6# {[%emt 0:00:03] Artfully played by Puranik.   Weighted Error Value: White=0.07 (flawless) /Black=0.40} 1-0

[Event "Cracovia Festival-A 2023"]
[Site "Krakow"]
[Date "2023.12.27"]
[Round "1.2"]
[White "Ramirez Garcia, Jorge Alberto"]
[Black "Gumularz, Szymon"]
[Result "0-1"]
[ECO "B06"]
[WhiteElo "2249"]
[BlackElo "2576"]
[Annotator "TA"]
[PlyCount "54"]
[EventDate "2023.12.24"]
[EventType "swiss"]
[EventCountry "POL"]
[SourceTitle "playchess.com"]
[Source "ChessBase"]
[SourceQuality "1"]
[TimeControl "40/5400+30:1800+30"]

{[%evp 9,54,57,60,57,65,0,3,0,0,0,0,0,0,-22,-15,-14,0,-104,-102,-91,-84,-97,-97,-220,-147,-139,-108,-112,-114,-178,-190,-189,-195,-243,-232,-243,-229,-233,-226,-329,-309,-323,-318,-356,-359,-357,-362]} 1. e4 {[%emt 0:00:03]} g6 {[%emt 0:02:19]} 2. d4 {[%emt 0:00:25]} Bg7 {[%emt 0:02:22]} 3. Nc3 {[%emt 0:02:14]} c6 {[%emt 0:00:07]} 4. f4 {[%emt 0:03:10]} Qb6 {[%emt 0:00:16]} 5. Nf3 {[%emt 0:01:06]} d5 {[%emt 0:00:06]} 6. e5 {[%emt 0:00:46] B06: Modern Defence.} Bg4 {[%emt 0:00:07] [#]} 7. Bd3 $146 {[%emt 0:11:54]} (7. Be2 $14) ({Predecessor:} 7. Be2 Nh6 8. Na4 Qa5+ 9. c3 Nd7 10. b4 Qc7 11. Be3 b5 12. Nb2 Nf5 13. Bf2 {0-1 Sethuraman,S (2619)-Lalith,B (2558) MPL Indian Chess Tour N1 rapid 2022 (8)}) 7... Bxf3 $11 {[%emt 0:06:25]} 8. Qxf3 {[%emt 0:00:36] The position is equal.} Qxd4 {[%emt 0:00:33]} 9. Be3 {[%emt 0:00:31]} Qb4 {[%emt 0:00:03]} 10. O-O-O {[%emt 0:02:38][%cal Oc3d5]} (10. a3 $5 Qa5 $8 11. O-O $11) 10... e6 {[%emt 0:00:05]} 11. g4 {[%emt 0:01:52]} Nd7 {[%emt 0:00:46]} 12. h4 {[%emt 0:05:10]} h5 {[%emt 0:02:30]} 13. Be2 {[%emt 0:01:13]} (13. gxh5 $11 {keeps the balance.} Rxh5 14. Rdg1) 13... hxg4 $17 {[%emt 0:00:37]} 14. Qxg4 {[%emt 0:04:23]} Nh6 {[%emt 0:00:09][%cal Bg8h6,Bh6f5,Bf5e3][%mdl 32]} 15. Qg1 {[%emt 0:02:36]} Nf5 {[%emt 0:00:18] Hoping for ...Bh6.} 16. h5 {[%emt 0:00:39]} (16. Bd2 $17 {is a better defense.} Qf8 17. h5) 16... Nxe3 {[%emt 0:07:13]} 17. Qxe3 {[%emt 0:00:09]} g5 {[%emt 0:00:19][%mdl 64] [#] Deflection} 18. fxg5 {[%emt 0:10:06]} Bxe5 {[%emt 0:00:08] Threatens to win with ...Bf4.} 19. Rdf1 {[%emt 0:01:20] Wards off Bf4} (19. Kb1 $17) 19... d4 $19 {[%emt 0:03:45]} 20. Qe4 {[%emt 0:07:06]} Qe7 {[%emt 0:00:22]} 21. Na4 {[%emt 0:07:26]} (21. Nd1 $142) 21... Qxg5+ {[%emt 0:00:16]} 22. Kb1 {[%emt 0:00:04]} f5 {[%emt 0:02:45]} 23. Qf3 {[%emt 0:01:48]} Qg3 {[%emt 0:01:26]} 24. Re1 {[%emt 0:01:03]} (24. b4 {might work better.}) 24... Qxf3 {[%emt 0:00:26]} 25. Bxf3 {[%emt 0:00:06]} Ke7 {[%emt 0:00:32]} 26. b4 {[%emt 0:02:50]} Bd6 {[%emt 0:00:46] Inhibits Nc5.} 27. a3 {[%emt 0:00:29]} a5 {[%emt 0:00:17] Weighted Error Value: White=0.38/Black=0.08 (flawless)} 0-1

[Event "Cracovia Festival-A 2023"]
[Site "Krakow"]
[Date "2023.12.27"]
[Round "1.3"]
[White "Keinanen, Toivo"]
[Black "Panek, Bartosz"]
[Result "1-0"]
[ECO "A15"]
[WhiteElo "2522"]
[BlackElo "2232"]
[Annotator "TA"]
[PlyCount "55"]
[EventDate "2023.12.24"]
[EventType "swiss"]
[EventCountry "POL"]
[SourceTitle "playchess.com"]
[Source "ChessBase"]
[SourceQuality "1"]
[TimeControl "40/5400+30:1800+30"]

{[%evp 16,55,48,21,75,47,70,83,69,62,78,76,92,15,44,34,160,166,168,166,164,166,206,211,627,616,649,612,624,615,714,690,797,778,791,775,5573,1601,5397,5365,2010,1422]} 1. c4 {[%emt 0:08:03]} Nf6 {[%emt 0:00:16]} 2. Nf3 {[%emt 0:00:43]} e6 {[%emt 0:00:16]} 3. g3 {[%emt 0:00:11]} d5 {[%emt 0:00:20]} 4. Bg2 {[%emt 0:00:21]} c5 {[%emt 0:00:18]} 5. cxd5 {[%emt 0:04:48]} Nxd5 {[%emt 0:01:21]} 6. O-O {[%emt 0:02:12]} Nc6 {[%emt 0:02:30]} 7. d4 {[%emt 0:01:35]} Be7 {[%emt 0:12:47]} 8. dxc5 {[%emt 0:03:08]} Bxc5 {[%emt 0:02:10]} 9. Qc2 {[%emt 0:01:46]} Qb6 {[%emt 0:07:26] E06: Closed Catalan: Early deviations.} (9... Qe7 $11) 10. Nbd2 {[%emt 0:07:22] [#]} Nd4 $146 {[%emt 0:05:27]} ({Predecessor:} 10... O-O 11. a3 Be7 12. e4 Nf6 13. Nc4 Qa6 14. e5 Nd5 15. Ne3 Ndb4 16. Qe4 Nd3 17. Rd1 {1-0 Bogosavljevic,B (2527)-Andjic,M (1957) MNT-chT 1st League 2021 (3.2)}) 11. Nxd4 {[%emt 0:04:34]} Bxd4 {[%emt 0:00:12] White is better.} 12. Nc4 {[%emt 0:08:08]} Qc5 {[%emt 0:11:15] [#]} 13. Nd6+ $1 {[%emt 0:04:04]} Ke7 {[%emt 0:04:45]} (13... Qxd6 14. Qa4+) 14. Nxc8+ {[%emt 0:19:11]} (14. Qxc5 $16 Bxc5 15. Ne4) 14... Raxc8 $11 {[%emt 0:01:37]} 15. Qb3 {[%emt 0:00:07]} b6 {[%emt 0:05:09]} (15... Rhd8 $14) 16. e3 $16 {[%emt 0:03:24][%cal Be2e3,Be3e4][%mdl 32]} Be5 {[%emt 0:08:20] [#]} 17. e4 $1 $36 {[%emt 0:03:45][%mdl 2048] Keeping Black busy.} Nb4 {[%emt 0:06:38]} 18. Be3 {[%emt 0:06:06]} Bd4 {[%emt 0:05:38]} 19. Rac1 {[%emt 0:09:38]} Qd6 {[%emt 0:00:48] [#]} (19... Bxe3 20. Rxc5 Bxc5) 20. e5 $1 $18 {[%emt 0:02:30][%mdl 512] White is clearly winning.} Bxe5 {[%emt 0:02:11]} (20... Qxe5 21. Qxb4+) 21. Rcd1 {[%emt 0:00:16][%cal Bc1d1,Bd1d5,Bd5d6][%mdl 32]} Nd5 {[%emt 0:00:30]} 22. Bxd5 {[%emt 0:00:25]} exd5 {[%emt 0:00:06]} 23. Rxd5 {[%emt 0:00:43]} Qe6 {[%emt 0:00:15]} 24. Re1 {[%emt 0:02:46] Qb4+ is the strong threat.} f6 {[%emt 0:02:43]} 25. Bd4 {[%emt 0:01:09][%cal Rd4e5]} Qg4 {[%emt 0:03:04]} 26. f4 {[%emt 0:01:41]} (26. Bxe5 $142 Rhe8 27. Bd6+ Kf7 28. Rd4+ {[%mdl 64] Discovered Attack} Qe6 29. Rxe6 Rxe6 30. Re4 Rce8 31. Qd5) 26... Rhd8 {[%emt 0:01:03]} 27. fxe5 {[%emt 0:00:33]} f5 {[%emt 0:00:26] [#]} 28. Rd6 $1 {[%emt 0:01:02] Weighted Error Value: White=0.10 (very precise) /Black=0.57} 1-0

[Event "Cracovia Festival-A 2023"]
[Site "Krakow"]
[Date "2023.12.27"]
[Round "1.4"]
[White "Keinanen, Anastasia"]
[Black "Polak, Tomas"]
[Result "1/2-1/2"]
[ECO "B13"]
[WhiteElo "2227"]
[BlackElo "2517"]
[Annotator "TA"]
[PlyCount "84"]
[EventDate "2023.12.24"]
[EventType "swiss"]
[EventCountry "POL"]
[SourceTitle "playchess.com"]
[Source "ChessBase"]
[SourceQuality "1"]
[TimeControl "40/5400+30:1800+30"]

{[%evp 24,84,28,25,25,20,25,26,23,14,15,14,20,0,46,14,50,54,65,62,93,70,72,0,11,-12,-24,-27,-28,-28,-15,-68,-66,-103,-104,-104,-95,-137,-122,-142,-139,-187,-152,-137,-141,-128,-137,-131,-105,-212,0,0,0,0,0,0,0,0,0,0,0,0,0]} 1. e4 {[%emt 0:07:32]} c6 {[%emt 0:01:52]} 2. d4 {[%emt 0:00:09]} d5 {[%emt 0:00:06]} 3. exd5 {[%emt 0:00:08]} cxd5 {[%emt 0:00:04]} 4. Bd3 {[%emt 0:00:06]} Nc6 {[%emt 0:00:15]} 5. c3 {[%emt 0:00:08]} Nf6 {[%emt 0:03:24]} 6. Bf4 {[%emt 0:00:10]} Bg4 {[%emt 0:00:08]} 7. Qb3 {[%emt 0:00:05]} Qd7 {[%emt 0:00:05]} 8. Nd2 {[%emt 0:00:06]} e6 {[%emt 0:00:07]} 9. Ngf3 {[%emt 0:00:03]} Bxf3 {[%emt 0:00:07]} 10. Nxf3 {[%emt 0:00:05]} Bd6 {[%emt 0:00:05]} 11. Bxd6 {[%emt 0:03:47]} Qxd6 {[%emt 0:00:05]} 12. O-O {[%emt 0:00:09]} O-O {[%emt 0:00:06]} 13. Rae1 {[%emt 0:01:32]} Qc7 {[%emt 0:00:24] B13: Caro-Kann: Exchange Variation and Panov-Botvinnik Attack.} 14. Qd1 {[%emt 0:10:03]} h6 {[%emt 0:04:58]} 15. Ne5 {[%emt 0:04:14]} Nxe5 {[%emt 0:01:26] White has an edge.} 16. dxe5 {[%emt 0:00:45]} Nd7 {[%emt 0:00:10] [#]} 17. Qe2 $146 {[%emt 0:02:28]} ({Predecessor:} 17. f4 f5 18. exf6 Rxf6 19. Qg4 Qb6+ 20. Rf2 Rd8 21. g3 e5 22. Bf5 h5 23. Qg5 {½-½ Gazik,V (2414)-Polak,T (2511) Banicky Kahanec 2016 (1)}) 17... Rae8 {[%emt 0:03:34]} 18. Kh1 {[%emt 0:14:08]} Kh8 {[%emt 0:02:35]} (18... g6 $11) 19. Bc2 {[%emt 0:13:31]} f6 {[%emt 0:05:27]} 20. exf6 {[%emt 0:02:25]} Nxf6 {[%emt 0:01:20]} 21. f4 {[%emt 0:02:55]} a6 {[%emt 0:05:09]} 22. Bg6 {[%emt 0:04:52]} Re7 {[%emt 0:01:13] [#]} 23. Bf5 {[%emt 0:02:58]} Nd7 {[%emt 0:09:39]} 24. Bxe6 {[%emt 0:06:44]} Rxf4 {[%emt 0:00:21]} 25. Rxf4 {[%emt 0:00:54]} Qxf4 {[%emt 0:00:08]} 26. Qd1 $1 {[%emt 0:02:18]} Nf6 {[%emt 0:00:32]} 27. Rf1 {[%emt 0:03:04] Against Qf2} (27. Bc8 $11 Ne4 28. Rf1 Nf2+ 29. Kg1 Nxd1 30. Rxf4) 27... Qc4 $1 $15 {[%emt 0:03:12]} 28. Bh3 {[%emt 0:10:03]} Re2 {[%emt 0:07:57]} 29. b3 {[%emt 0:07:56]} Qe4 {[%emt 0:00:33][%cal Og7g5] [#] Strongly threatening ...g5!} (29... Qxc3 $2 30. Qxe2 Qb4 31. Qe5 $18) 30. Qb1 {[%emt 0:00:04]} Qxb1 {[%emt 0:06:02]} 31. Rxb1 $17 {[%emt 0:00:06][%mdl 4096] Endgame KRB-KRN} Ne4 $1 {[%emt 0:00:16]} 32. c4 {[%emt 0:02:13]} (32. Bc8 $17) 32... d4 {[%emt 0:00:59][%cal Bd5d4,Bd4d3][%mdl 32]} ({Weaker is} 32... Rxa2 33. Kg1 $17) 33. Kg1 {[%emt 0:00:44]} d3 {[%emt 0:01:08]} ({Stronger than} 33... Rxa2 34. Re1 Nf6 35. Bc8 $15) 34. Bg4 {[%emt 0:00:27]} Rxa2 {[%emt 0:00:54] ...d2 is the strong threat.} 35. Re1 {[%emt 0:00:33]} Nf6 {[%emt 0:10:34]} 36. Bf5 {[%emt 0:00:07]} (36. Bf3 $17 {keeps fighting.}) 36... Rb2 $2 {[%emt 0:02:30]} (36... d2 $19 {[%cal Rd2e1]} 37. Rf1 g6 38. Bxg6 Ng4) 37. Bxd3 $11 {[%emt 0:00:16] The position is equal.} Rxb3 {[%emt 0:00:08]} 38. Bg6 {[%emt 0:00:10] And now Rd1 would win.} Kg8 {[%emt 0:14:53]} 39. Re7 {[%emt 0:00:33]} a5 {[%emt 0:04:13]} 40. Rc7 {[%emt 0:00:00] Threatening mate with Rc8+.} Kf8 {[%emt 0:00:00]} 41. Rf7+ {[%emt 0:01:06]} Kg8 {[%emt 0:02:22][%cal Ob3b1] Threatens to win with ...Rb1+!} 42. Rc7 {[%emt 0:00:03] White threatens Rc8+ and mate.} Kf8 {And White is the lucky defender.   Weighted Error Value: White=0.19 (very precise) /Black=0.19 (very precise)} 1/2-1/2

[Event "Cracovia Festival-A 2023"]
[Site "Krakow"]
[Date "2023.12.27"]
[Round "1.5"]
[White "Janik, Igor"]
[Black "Fodor, Balazs"]
[Result "1-0"]
[ECO "E06"]
[WhiteElo "2514"]
[BlackElo "2225"]
[Annotator "TA"]
[PlyCount "137"]
[EventDate "2023.12.24"]
[EventType "swiss"]
[EventCountry "POL"]
[SourceTitle "playchess.com"]
[Source "ChessBase"]
[SourceQuality "1"]
[TimeControl "40/5400+30:1800+30"]

{[%evp 17,137,-14,0,-32,-16,-18,0,-43,-53,-53,-41,-38,-41,-44,11,0,0,0,17,5,17,12,33,0,8,8,8,12,12,6,21,23,55,64,70,54,85,73,87,89,90,77,86,80,74,50,110,88,86,31,25,34,98,55,68,76,71,70,78,73,83,32,39,35,42,35,35,39,35,39,41,32,32,32,47,47,49,49,47,48,92,85,88,32,45,54,55,55,55,55,119,72,112,79,76,93,95,91,243,237,237,152,211,215,236,225,211,111,545,572,549,523,987,947,932,900,817,817,1202,1182,737,701]} 1. c4 {[%emt 0:00:45]} Nf6 {[%emt 0:00:21]} 2. d4 {[%emt 0:00:06]} e6 {[%emt 0:00:36]} 3. Nf3 {[%emt 0:02:23]} d5 {[%emt 0:00:08]} 4. g3 {[%emt 0:00:24]} Be7 {[%emt 0:00:19]} 5. Bg2 {[%emt 0:01:20]} O-O {[%emt 0:00:12]} 6. cxd5 {[%emt 0:00:20]} exd5 {[%emt 0:00:34]} 7. O-O {[%emt 0:00:06]} c6 {[%emt 0:00:48]} 8. Nc3 {[%emt 0:00:43]} Nbd7 {[%emt 0:03:16]} 9. Qc2 {[%emt 0:02:32]} Re8 {[%emt 0:04:24]} 10. Rd1 {[%emt 0:03:52] E07: Closed Catalan: Main Line (5 Nf3 0-0 6 0-0 Nbd7).} (10. Bf4 $5 {[%cal Rc3b5]}) 10... Nf8 {[%emt 0:13:44] [#]} 11. Bg5 $146 {[%emt 0:00:10]} ({Predecessor:} 11. Ne5 Be6 12. f4 Qc8 13. b3 Bf5 14. e4 dxe4 15. Nxe4 Nd5 16. Qf2 f6 17. Nc4 Bxe4 18. Bxe4 {1-0 Concio,M (2297)-Rohit,K (2304) Wch FIDE Online U16 Asia qual rapid 2020 (5)}) 11... g6 {[%emt 0:09:25]} 12. Bxf6 {[%emt 0:01:42] The position is equal.} (12. Ne5 {is interesting.} Ne6 13. Bh6 Bd6 14. Nf3) 12... Bxf6 {[%emt 0:00:09]} 13. b4 {[%emt 0:00:06]} a6 {[%emt 0:01:37]} 14. a4 {[%emt 0:03:21]} Bf5 {[%emt 0:09:11]} 15. Qb3 {[%emt 0:00:46]} b5 {[%emt 0:05:50]} (15... h5 $15) 16. e3 {[%emt 0:03:33][%cal Of3e5]} Nd7 {[%emt 0:01:18] Inhibits Ne5.} 17. a5 {[%emt 0:01:09] Inhibits Nb6.} Bg7 {[%emt 0:04:08]} 18. Rdc1 {[%emt 0:02:37]} Rc8 {[%emt 0:01:37]} 19. Ne2 {[%emt 0:07:09]} Qe7 {[%emt 0:03:01]} 20. Ra2 {[%emt 0:00:22]} Bf8 {[%emt 0:02:22]} 21. Rb2 {[%emt 0:00:08]} g5 {[%emt 0:02:25]} 22. Rc3 {[%emt 0:09:14]} Qf6 {[%emt 0:07:12]} 23. Nc1 {[%emt 0:02:50]} Be4 {[%emt 0:02:44]} 24. Nd2 {[%emt 0:01:00]} Bxg2 {[%emt 0:00:09]} 25. Kxg2 {[%emt 0:00:05]} Re6 {[%emt 0:00:28]} 26. Qc2 {[%emt 0:11:34]} Rce8 {[%emt 0:03:55]} 27. Nd3 {[%emt 0:03:14]} Qh6 {[%emt 0:04:43]} 28. h3 {[%emt 0:04:09]} Rc8 {[%emt 0:04:08]} 29. Qd1 {[%emt 0:02:01]} Qg6 {[%emt 0:00:42]} 30. Rbc2 {[%emt 0:01:23]} h5 {[%emt 0:02:41]} 31. Kg1 {[%emt 0:03:55][%cal Oh3h4]} f6 {[%emt 0:02:19]} (31... Qh7 $14) 32. Nf1 {[%emt 0:04:22]} Nb8 {[%emt 0:01:35]} 33. Nc5 {[%emt 0:01:22]} (33. Rc1 $16) 33... Bxc5 $14 {[%emt 0:03:01]} 34. Rxc5 {[%emt 0:00:02]} Rf8 {[%emt 0:01:14]} (34... Nd7 $14) 35. Nd2 {[%emt 0:00:27]} h4 36. gxh4 {[%emt 0:05:38]} gxh4+ {[%emt 0:03:11]} 37. Qg4 {[%emt 0:05:47]} Qxg4+ {[%emt 0:00:23]} 38. hxg4 {[%emt 0:00:01]} f5 {[%emt 0:00:07]} 39. Nf3 {[%emt 0:01:35]} (39. gxf5 $16 Rxf5 40. Nb3) 39... fxg4 {[%emt 0:00:25]} 40. Nxh4 {[%emt 0:00:00]} g3 {[%emt 0:00:00]} 41. Ng2 {[%emt 0:00:28]} Rxf2 {[%emt 0:04:12]} 42. Rxf2 {[%emt 0:00:06]} gxf2+ {[%emt 0:00:05]} 43. Kxf2 {[%emt 0:00:17][%mdl 4096] Endgame KRN-KRN} Nd7 {[%emt 0:01:54]} 44. Rc1 {[%emt 0:03:01]} Rh6 $1 {[%emt 0:00:23]} 45. Kf3 {[%emt 0:00:55]} Kf7 {[%emt 0:00:11]} 46. Nf4 {[%emt 0:01:36]} Ke7 {[%emt 0:00:23]} 47. Rg1 {[%emt 0:01:01]} Kf7 {[%emt 0:05:17] Repels Rg7+} 48. Rg2 {[%emt 0:03:54]} Rh1 {[%emt 0:06:38]} 49. Rc2 {[%emt 0:01:14]} Rh6 {[%emt 0:00:10]} 50. Nd3 {[%emt 0:01:52] White is more active.} ({White should try} 50. Kg4 $16) 50... Rf6+ {[%emt 0:01:46]} 51. Ke2 {[%emt 0:00:18]} Ke7 {[%emt 0:01:12]} 52. Rc1 {[%emt 0:00:26]} Rh6 {[%emt 0:00:48]} 53. Rg1 {[%emt 0:01:08]} Kd6 {[%emt 0:00:44]} (53... Kf8 $14) 54. Rg2 {[%emt 0:00:58]} (54. Rg7 $142) 54... Rh8 {[%emt 0:00:58]} 55. Rg6+ {[%emt 0:01:08]} Kc7 {[%emt 0:00:07]} 56. Nf4 {[%emt 0:05:42]} Re8 {[%emt 0:01:41]} 57. Rh6 {[%emt 0:01:03]} Nf8 $2 {[%emt 0:01:50]} (57... Rg8 $16) 58. Rh8 $18 {[%emt 0:02:07][%cal Oh8f8] [#] Hoping for Rxf8!} Kd8 {[%emt 0:00:15]} 59. Kd2 {[%emt 0:09:17]} Ke7 {[%emt 0:01:39]} (59... Nd7 $16 {was necessary.} 60. Ne6+ Ke7 61. Rxe8+ Kxe8) 60. Rh6 {[%emt 0:01:06]} Rc8 {[%emt 0:00:26]} 61. Nd3 {[%emt 0:00:15]} Nd7 {[%emt 0:02:21]} 62. Rh7+ {[%emt 0:01:57]} ({Better is} 62. Ke2 $18) 62... Ke6 $2 {[%emt 0:00:10][%mdl 8192] [#]} (62... Kd6 $16 63. Nc5 Nb8) 63. Nc5+ $1 {[%emt 0:00:40] White is clearly winning.} Nxc5 {[%emt 0:00:07]} 64. bxc5 {[%emt 0:00:01] KR-KR} Rg8 {[%emt 0:02:36]} 65. Rc7 {[%emt 0:00:23]} Rg2+ {[%emt 0:00:07]} 66. Kd3 {[%emt 0:00:05]} Ra2 {[%emt 0:00:06]} 67. Rxc6+ {[%emt 0:00:03]} Kf5 {[%emt 0:00:09]} 68. Rxa6 {[%emt 0:00:05]} Ra3+ {[%emt 0:00:05]} 69. Ke2 {[%emt 0:00:08] Weighted Error Value: White=0.12 (very precise) /Black=0.15 (very precise)} 1-0

[Event "Cracovia Festival-A 2023"]
[Site "Krakow"]
[Date "2023.12.27"]
[Round "1.6"]
[White "Dziewonski, Dariusz"]
[Black "Akbas, Umut Ata"]
[Result "0-1"]
[ECO "B43"]
[WhiteElo "2224"]
[BlackElo "2446"]
[Annotator "RC"]
[PlyCount "64"]
[EventDate "2023.12.24"]
[EventType "swiss"]
[EventCountry "POL"]
[SourceTitle "playchess.com"]
[Source "ChessBase"]
[SourceQuality "1"]
[TimeControl "40/5400+30:1800+30"]

1. e4 {[%emt 0:01:48]} c5 {[%emt 0:03:56]} 2. Nf3 {[%emt 0:00:06]} e6 {[%emt 0:00:09]} 3. d4 {[%emt 0:00:14]} cxd4 {[%emt 0:00:08]} 4. Nxd4 {[%emt 0:00:04]} a6 {[%emt 0:00:07]} 5. Nc3 {[%emt 0:00:56]} Qc7 {[%emt 0:00:09]} 6. Bd3 {[%emt 0:01:03]} Nf6 {[%emt 0:00:12]} 7. O-O {[%emt 0:01:33]} Be7 {[%emt 0:00:13]} 8. Kh1 {[%emt 0:05:09]} d6 {[%emt 0:00:22]} 9. f4 {[%emt 0:03:10]} Nbd7 {[%emt 0:00:22]} 10. Qe2 {[%emt 0:02:17]} Nc5 {[%emt 0:05:51]} 11. Bd2 {[%emt 0:03:24]} O-O {[%emt 0:04:28]} 12. Rac1 {[%emt 0:08:03]} b5 {[%emt 0:08:52]} 13. b4 {[%emt 0:01:10]} Nxd3 {[%emt 0:00:25]} 14. cxd3 {[%emt 0:00:05]} Qd7 {[%emt 0:00:42]} 15. Rc2 {[%emt 0:12:55]} Bb7 {[%emt 0:04:12]} 16. Rfc1 {[%emt 0:03:25]} Rac8 {[%emt 0:08:24]} 17. Nd1 {[%emt 0:03:40]} g6 {[%emt 0:07:40]} 18. a3 {[%emt 0:09:08]} Nh5 {[%emt 0:13:05]} 19. Nf3 {[%emt 0:06:34]} Rxc2 {[%emt 0:06:41]} 20. Rxc2 {[%emt 0:00:33]} f5 {[%emt 0:00:22]} 21. e5 {[%emt 0:05:15]} Rc8 {[%emt 0:02:56]} 22. Be3 {[%emt 0:06:05]} Rxc2 {[%emt 0:04:39]} 23. Qxc2 {[%emt 0:00:11]} Bxf3 {[%emt 0:00:09]} 24. gxf3 {[%emt 0:00:15]} dxe5 {[%emt 0:01:01]} 25. fxe5 {[%emt 0:01:03]} Qd5 {[%emt 0:05:13]} 26. Kg2 {[%emt 0:04:09]} Qxe5 {[%emt 0:02:26]} 27. Qc8+ {[%emt 0:13:40]} Kf7 {[%emt 0:00:19]} 28. Qb7 {[%emt 0:03:02]} Nf4+ {[%emt 0:11:15]} 29. Bxf4 {[%emt 0:02:02]} Qxf4 {[%emt 0:00:08]} 30. Qxa6 {[%emt 0:00:33]} Qg5+ {[%emt 0:03:01]} 31. Kf1 {[%emt 0:02:40]} Qc1 {[%emt 0:00:33]} 32. Ke1 {[%emt 0:00:16]} Bh4+ {[%emt 0:00:08]} 0-1